bitfinex/quotes_ETHUSD_20240910
["timestamp","ask_amount","ask_price","bid_price","bid_amount"]
[1725958697681,0.10601878,2358.2,2356.2,2.41061516]
[1725958697682,1.49483049,2357.9,2357.0,0.88954905]
[1725958697849,0.10604599,2357.8,2357.1,1.14843238]
[1725958698170,0.10604599,2357.8,2357.1,0.08483679]
[1725958698478,0.10604599,2357.8,2356.8,0.88954905]
[1725958698640,0.10604599,2357.8,2356.2,14.46510365]
[1725958698641,3.10607573,2357.7,2356.2,14.46510365]
[1725958698849,0.74385958,2357.6,2356.2,2.15510365]
[1725958699026,0.10608473,2357.5,2356.5,1.49483049]
[1725958699237,6.82711899,2357.6,2356.7,1.49483049]
[1725958699238,3.84992722,2357.6,2356.7,1.49483049]
[1725958699550,3.84992722,2357.6,2356.8,2.00104914]
[1725958699761,3.84992722,2357.6,2356.8,1.57967446]
[1725958701278,3.84992722,2357.6,2356.6,1.57999767]
[1725958701460,3.84992722,2357.6,2356.7,1.58708488]
[1725958701644,3.84992722,2357.6,2356.7,0.55]
[1725958701851,0.68499272,2357.5,2356.8,1.49483049]
[1725958702080,0.10605496,2357.4,2356.8,1.49483049]
[1725958702645,0.10605496,2357.4,2356.9,0.084844]
[1725958702847,0.10605496,2357.4,2356.8,1.49483049]
[1725958703041,0.48515973,2357.4,2356.8,1.49483049]
[1725958703685,3.0,2357.6,2357.0,1.49483049]
[1725958703978,3.0,2357.6,2357.1,0.08483356]
[1725958704889,3.0,2357.7,2357.2,1.49483049]
[1725958705688,3.0,2357.7,2357.2,1.7998799]
[1725958705853,3.0,2357.7,2357.2,1.49483049]
[1725958706343,3.0,2357.7,2357.3,0.08482786]
[1725958706879,3.0,2357.7,2357.2,1.49483049]
[1725958707185,3.0,2357.7,2357.3,0.08482786]
[1725958707753,3.0,2357.7,2357.2,1.49483049]
[1725958708246,3.0,2357.7,2357.3,0.08482787]
[1725958708447,3.0,2357.7,2357.2,1.49483049]
[1725958708646,3.0,2357.7,2357.2,1.79979864]
[1725958708957,3.0,2357.7,2357.2,1.49483049]
[1725958709362,3.0,2357.7,2356.9,19.53]
[1725958709550,3.0,2357.7,2357.0,2.04483049]
[1725958710652,0.10604242,2357.6,2356.8,28.50483049]
[1725958710878,0.10604242,2357.6,2356.9,2.83509868]
[1725958711587,3.10604242,2357.6,2356.9,2.83509868]
[1725958712788,3.10604242,2357.6,2356.8,27.01]
[1725958714283,1.49483049,2357.5,2356.8,27.01]
[1725958714494,0.10606586,2357.4,2356.8,27.01]
[1725958715464,0.10606586,2357.4,2356.5,7.48]
[1725958715669,0.5661555,2357.4,2356.5,7.48]
[1725958717502,1.49483049,2357.1,2356.5,7.48]
[1725958717717,0.10608068,2357.0,2356.5,7.48]
[1725958718608,0.10608074,2357.2,2356.5,7.48]
[1725958719312,1.49483049,2356.7,2356.5,7.48]
[1725958719463,1.49483049,2356.7,2356.2,2.15510365]
[1725958719809,0.10609232,2356.6,2356.2,2.15510365]
[1725958720316,0.10609906,2356.8,2356.2,2.15510365]
[1725958720519,0.10608551,2357.1,2356.5,1.49483049]
[1725958720668,0.10606946,2357.4,2356.7,1.49483049]
[1725958720868,0.10606946,2357.4,2356.8,0.08485061]
[1725958721068,0.10606946,2357.4,2356.9,1.49483049]
[1725958721263,0.10606946,2357.4,2356.7,1.49483049]
[1725958721566,1.60089522,2357.6,2356.7,1.49483049]
[1725958722367,4.60089522,2357.6,2356.8,0.08484744]
[1725958722871,3.10606473,2357.6,2356.8,0.08484744]
[1725958723072,0.67166682,2357.5,2356.8,0.08484744]
[1725958723317,0.10605929,2357.4,2356.8,0.08484744]
[1725958724315,0.10605929,2357.4,2356.7,1.49483049]
[1725958724550,0.10605929,2357.4,2356.6,1.49483049]
[1725958725224,0.63331495,2357.4,2356.6,1.49483049]
[1725958725791,0.63331495,2357.4,2356.7,0.08485173]
[1725958726581,0.63331495,2357.4,2356.8,1.49483049]
[1725958726925,0.63331495,2357.4,2356.7,0.08485173]
[1725958727129,0.10605929,2357.4,2356.7,0.08485173]
[1725958729383,0.77773011,2357.5,2356.7,0.08485173]
[1725958729625,0.77773011,2357.5,2356.8,1.49483049]
[1725958729824,3.10605509,2357.6,2356.9,0.08484404]
[1725958732540,3.10605509,2357.6,2357.0,1.49483049]
[1725958732709,3.10605509,2357.6,2357.1,0.08484134]
[1725958733565,3.0,2357.7,2357.2,1.49483049]
[1725958733724,3.0,2357.7,2357.3,0.08482988]
[1725958735255,3.0,2357.7,2357.4,1.49483049]
[1725958740565,3.0,2357.7,2357.2,1.49483049]
[1725958740773,3.0,2357.7,2357.3,0.08483046]
[1725958750236,3.0,2357.7,2357.0,0.75648304]
[1725958750448,3.0,2357.7,2356.9,7.48]
[1725958750449,3.0,2357.7,2357.2,1.49483049]
[1725958750768,3.0,2357.7,2357.3,0.08483458]
[1725958756545,3.0,2357.7,2357.4,1.49483049]
[1725958758354,3.0,2357.7,2357.2,1.49483049]
[1725958758587,3.0,2357.7,2357.3,0.08483042]
[1725958762055,1.8731689,2357.9,2357.3,0.08482316]
[1725958762253,1.8731689,2357.9,2357.5,1.49483049]
[1725958762479,1.8731689,2357.9,2357.6,0.08482122]
[1725958764999,1.8731689,2357.9,2357.7,1.49483049]
[1725958765147,1.8731689,2357.9,2357.8,0.63481044]
[1725958765347,1.8731689,2357.9,2357.8,0.84777453]
[1725958767313,0.10601319,2359.0,2357.8,0.29777453]
[1725958767453,0.10601319,2359.0,2358.5,1.49483049]
[1725958767794,0.10601319,2359.0,2357.9,0.55]
[1725958767795,0.10601319,2359.0,2358.3,1.49483049]
[1725958767999,4.13856916,2359.3,2358.3,1.49483049]
[1725958768000,0.10599411,2359.2,2358.3,1.49483049]
[1725958768197,0.88336878,2359.2,2358.3,1.49483049]
[1725958769420,0.88336878,2359.2,2358.4,0.0847949]
[1725958769829,0.88336878,2359.2,2358.3,1.49483049]
[1725958770614,0.88336878,2359.2,2358.5,1.49483049]
[1725958770772,2.75653768,2359.2,2358.5,1.49483049]
[1725958770978,3.0,2359.1,2358.5,1.49483049]
[1725958771328,0.10598294,2359.0,2358.5,1.49483049]
[1725958771613,0.10598294,2359.0,2358.6,0.08478637]
[1725958772004,0.10598294,2359.0,2358.5,1.49483049]
[1725958772236,0.10598294,2359.0,2358.6,0.08478638]
[1725958773354,0.10598294,2359.0,2358.3,1.49483049]
[1725958774357,0.10598301,2359.1,2358.5,1.49483049]
[1725958774522,3.10598301,2359.1,2358.6,0.08478643]
[1725958774919,0.10598301,2359.1,2358.6,0.08478643]
[1725958776426,0.10598301,2359.1,2358.5,1.49483049]
[1725958776829,0.10598301,2359.1,2358.6,0.08478653]
[1725958777663,0.10598301,2359.1,2358.3,1.49483049]
[1725958777952,0.10598301,2359.1,2358.4,0.08478661]
[1725958778514,0.10598301,2359.1,2358.3,1.49483049]
[1725958778713,0.10598301,2359.1,2358.4,0.08478655]
[1725958781793,0.10598301,2359.1,2358.5,1.49483049]
[1725958781949,0.10598301,2359.1,2358.6,0.08478659]
[1725958782285,1.97915214,2359.2,2358.6,0.08478659]
[1725958784189,1.8731689,2359.2,2358.6,0.08478659]
[1725958784495,1.8731689,2359.2,2358.7,1.49483049]
[1725958785071,0.10597846,2359.2,2358.7,1.49483049]
[1725958786295,3.10597845,2359.3,2358.7,1.49483049]
[1725958786501,3.0,2359.3,2358.8,0.08478276]
[1725958789588,3.10597086,2359.3,2358.8,0.08478276]
[1725958790268,3.10597086,2359.3,2358.5,1.49483049]
[1725958790474,3.10597086,2359.3,2358.6,0.55]
[1725958796750,3.10597086,2359.3,2358.7,0.08477689]
[1725958798354,3.10597086,2359.3,2358.6,0.55]
[1725958801911,3.10597086,2359.3,2358.7,1.49483049]
[1725958802553,3.10597086,2359.3,2358.8,0.08477706]
[1725958802773,3.71656795,2359.3,2358.8,0.08477706]
[1725958803270,0.10597135,2359.2,2358.6,0.55]
[1725958803469,3.71657449,2359.3,2358.7,0.08478192]
[1725958803646,0.77763485,2359.2,2358.4,7.48]
[1725958805343,0.77763485,2359.2,2358.4,1.49483049]
[1725958807343,0.77763485,2359.2,2358.3,0.66352848]
[1725958807544,0.77763485,2359.2,2358.2,8.97483049]
[1725958807788,0.52724653,2359.1,2358.4,1.49483049]
[1725958807986,0.10598722,2359.0,2358.5,0.08478977]
[1725958808188,0.63323375,2359.1,2358.5,0.08478977]
[1725958809385,0.63323375,2359.1,2358.4,1.49483049]
[1725958809574,0.63323375,2359.1,2358.5,0.4523136]
[1725958809771,0.63323375,2359.1,2358.4,1.49483049]
[1725958810787,0.63323375,2359.1,2358.2,10.49390716]
[1725958811186,0.63323375,2359.1,2358.3,1.01423625]
[1725958811618,0.63323375,2359.1,2358.2,13.74659843]
[1725958812183,0.63323375,2359.1,2358.3,1.01435295]
[1725958812382,0.63323375,2359.1,2358.2,13.74685131]
[1725958812626,0.63323375,2359.1,2358.3,1.46364004]
[1725958812930,3.63323375,2359.1,2358.3,1.46364004]
[1725958813643,5.84054762,2359.1,2358.3,1.46364004]
[1725958813812,5.31330109,2359.1,2358.4,1.49483049]
[1725958814009,3.10598722,2359.1,2358.4,1.49483049]
[1725958814218,3.0,2359.1,2358.6,1.49483049]
[1725958814429,5.20731387,2359.3,2358.8,1.49483049]
[1725958814634,3.0,2359.3,2358.9,0.08477408]
[1725958816025,5.31328148,2359.4,2358.9,0.08477408]
[1725958816342,3.10596761,2359.4,2358.9,0.08477408]
[1725958816507,3.0,2359.4,2358.9,0.08477408]
[1725958822073,3.0,2359.4,2359.0,1.49483049]
[1725958822224,3.10596278,2359.4,2358.7,19.53]
[1725958822419,3.10596278,2359.4,2358.7,21.12087774]
[1725958823725,3.10596278,2359.4,2358.8,0.08477458]
[1725958823940,3.10596278,2359.4,2358.7,21.12087774]
[1725958824530,3.10596278,2359.4,2358.8,2.34634541]
[1725958825022,3.10596278,2359.4,2358.8,2.26157082]
[1725958825394,3.0,2359.4,2358.9,0.08477464]
[1725958826333,5.20746308,2359.6,2359.0,1.49483049]
[1725958826628,2.20746308,2359.6,2359.1,0.08476808]
[1725958826986,5.31342544,2359.7,2359.1,0.08476808]
[1725958827189,2.31342544,2359.7,2359.1,0.08476808]
[1725958827389,2.20746308,2359.6,2359.1,0.08476808]
[1725958827585,5.20746308,2359.6,2359.1,0.08476808]
[1725958827786,3.0,2359.6,2359.1,0.08476808]
[1725958828029,2.20783886,2359.6,2359.1,0.08476808]
[1725958828327,5.31380122,2359.7,2359.1,0.08476808]
[1725958828531,3.0,2359.6,2359.1,0.08476808]
[1725958828738,0.10596082,2359.5,2358.7,0.55]
[1725958828936,2.31379968,2359.5,2358.7,2.04483049]
[1725958829139,2.31379968,2359.5,2358.8,2.15748305]
[1725958829995,2.31379968,2359.5,2358.7,2.04483049]
[1725958832136,2.31379968,2359.5,2358.8,0.08477445]
[1725958832337,2.31379968,2359.5,2358.7,2.04483049]
[1725958832751,2.31379968,2359.5,2358.8,0.08477447]
[1725958833052,2.3131757,2359.5,2358.7,2.04483049]
[1725958833253,2.3131757,2359.5,2358.8,2.15748305]
[1725958833751,2.3131501,2359.5,2358.8,2.15748305]
[1725958834910,2.3131501,2359.5,2358.9,0.08477452]
[1725958835709,0.10596082,2359.5,2358.9,0.08477452]
[1725958835911,2.3131501,2359.5,2358.9,0.51348333]
[1725958836257,0.10596082,2359.5,2358.9,0.51348333]
[1725958836737,0.10596082,2359.5,2358.9,2.00831382]
[1725958837659,2.3131501,2359.5,2358.9,1.9235393]
[1725958837827,2.97256345,2359.5,2358.8,2.15748305]
[1725958838544,2.97256345,2359.5,2358.7,2.04483049]
[1725958840042,2.97256345,2359.5,2358.8,0.08477471]
[1725958840245,0.10596082,2359.5,2358.8,0.08477471]
[1725958840453,2.31288467,2359.5,2358.8,0.08477471]
[1725958841170,0.10596082,2359.5,2358.8,0.08477471]
[1725958841314,2.31288467,2359.5,2358.8,0.08477471]
[1725958841515,0.53128847,2359.4,2358.8,0.08477471]
[1725958841914,2.31288467,2359.5,2358.9,1.49483049]
[1725958841915,2.20692385,2359.5,2358.9,1.49483049]
[1725958842120,3.0,2359.6,2359.0,0.08476836]
[1725958842656,3.0,2359.5,2359.0,0.08476836]
[1725958842833,5.99681256,2359.7,2359.0,0.08476836]
[1725958843873,2.20741593,2359.4,2358.7,0.55]
[1725958844075,0.1059735,2359.3,2358.6,21.02483049]
[1725958844282,0.1059735,2359.3,2358.6,1.49483049]
[1725958844438,0.1059735,2359.3,2358.6,4.34531354]
[1725958844843,1.49483049,2359.2,2358.5,7.48]
[1725958845161,2.31341065,2359.1,2358.4,19.53]
[1725958845361,2.31341065,2359.1,2358.1,1.49483049]
[1725958845362,0.68082411,2359.0,2358.1,1.49483049]
[1725958845551,0.10599599,2358.9,2358.1,1.49483049]
[1725958845751,0.10599599,2358.9,2358.2,0.08480191]
[1725958845955,2.31341192,2358.9,2358.2,0.08480191]
[1725958846154,3.10599599,2358.9,2358.2,0.08480191]
[1725958846388,1.49483049,2358.8,2357.9,1.50033952]
[1725958846541,1.49483049,2358.8,2357.7,4.66194541]
[1725958846542,1.49483049,2358.6,2357.7,1.50033952]
[1725958846746,1.49483049,2358.4,2357.6,1.50033952]
[1725958847083,0.10602045,2358.3,2357.5,2.99517001]
[1725958847295,0.10602045,2358.3,2357.5,1.8667008]
[1725958847609,0.10602045,2358.3,2357.3,2.9943912]
[1725958847736,0.10602045,2358.3,2357.3,1.49483049]
[1725958847943,0.10602045,2358.3,2357.4,0.08482755]
[1725958848371,0.10602193,2358.4,2357.2,3.23814274]
[1725958848555,0.10602193,2358.4,2357.3,0.08481754]
[1725958849443,0.10602193,2358.4,2357.4,0.55]
[1725958849696,3.1060223,2358.5,2357.6,3.23814274]
[1725958849875,3.1060223,2358.5,2357.7,0.96710534]
[1725958850075,0.1060223,2358.5,2357.8,0.0848106]
[1725958850261,0.10601326,2358.8,2357.8,0.0848106]
[1725958850454,0.96090203,2358.8,2357.8,0.0848106]
[1725958850657,0.10601332,2358.7,2357.8,0.0848106]
[1725958851908,3.10601332,2358.7,2357.8,0.0848106]
[1725958852570,0.10601332,2358.7,2357.8,0.0848106]
[1725958854765,0.10601332,2358.7,2357.4,3.23814274]
[1725958854960,1.04603022,2358.7,2357.5,0.55]
[1725958855558,3.23814274,2358.6,2357.5,0.55]
[1725958855808,0.10602151,2358.5,2357.6,0.08481721]
[1725958856109,3.53443881,2358.5,2357.6,0.08481715]
[1725958856260,3.53443881,2358.5,2357.5,20.08]
[1725958856459,0.67725816,2358.4,2357.5,22.31929248]
[1725958856712,0.10601891,2358.3,2357.6,0.08481513]
[1725958857202,0.10601891,2358.3,2357.5,22.31929248]
[1725958857398,0.10601891,2358.3,2357.6,0.08481513]
[1725958857604,0.1060188,2358.4,2357.6,3.39704017]
[1725958857904,0.1060188,2358.4,2357.6,3.31222504]
[1725958858969,0.1060188,2358.4,2357.5,19.53]
[1725958860629,3.23814274,2358.2,2357.5,19.53]
[1725958860764,3.23814274,2358.2,2357.4,7.48]
[1725958860765,3.10604039,2358.1,2357.4,7.48]
[1725958860962,0.63441831,2358.0,2357.4,7.48]
[1725958861268,0.10604327,2357.9,2357.1,7.48]
[1725958861464,3.10604327,2357.9,2357.0,19.53]
[1725958861888,3.10604327,2357.9,2357.1,0.08484236]
[1725958862095,3.10604117,2357.8,2357.1,3.11814087]
[1725958862295,0.10604152,2357.7,2357.1,3.03329851]
[1725958862618,3.10604573,2357.9,2357.0,19.53]
[1725958865267,3.10604573,2357.9,2356.9,7.48]
[1725958865570,3.10604573,2357.9,2357.0,0.0848423]
[1725958866092,3.10604573,2357.9,2356.9,7.48]
[1725958866294,3.87256159,2357.8,2356.9,9.78281427]
[1725958866497,3.10605291,2357.7,2356.9,9.78281427]
[1725958866872,0.10605291,2357.7,2356.9,9.78281427]
[1725958867873,0.10605291,2357.7,2357.0,0.08484226]
[1725958868224,0.10605291,2357.7,2356.9,9.78281427]
[1725958868516,0.10605291,2357.7,2356.9,7.48]
[1725958868684,3.10605291,2357.7,2356.9,7.48]
[1725958871222,3.10605291,2357.7,2356.7,12.31]
[1725958871223,3.10605291,2357.7,2356.7,7.48]
[1725958871579,3.10605291,2357.7,2356.8,0.08484797]
[1725958871775,0.63441956,2357.6,2356.7,7.48]
[1725958872003,0.10605996,2357.5,2356.7,7.48]
[1725958873318,3.10605388,2357.9,2356.8,3.87299069]
[1725958873518,3.0,2357.8,2356.8,4.62099069]
[1725958873725,0.10604518,2357.7,2356.8,4.62099069]
[1725958874015,3.10604508,2357.9,2356.9,1.21009907]
[1725958874325,3.74046386,2357.9,2357.0,0.80080991]
[1725958874617,3.74046386,2357.9,2356.9,1.21009907]
[1725958875524,3.23814274,2357.8,2356.7,7.48]
[1725958875681,3.10605998,2357.7,2356.7,7.48]
[1725958880624,3.23814274,2357.3,2356.7,7.48]
[1725958880835,0.10607566,2357.2,2356.6,0.08486053]
[1725958881649,3.23814274,2356.7,2355.8,7.485]
[1725958881853,0.10610146,2356.6,2355.9,0.08488117]
[1725958882149,3.44052588,2356.6,2355.9,0.08488117]
[1725958882360,3.44052588,2356.6,2355.8,0.005]
[1725958882646,3.23814274,2356.5,2355.8,0.005]
[1725958882853,3.10611007,2356.4,2355.8,0.005]
[1725958883013,3.23814274,2356.3,2355.8,0.005]
[1725958883217,0.10611686,2356.2,2355.8,0.005]
[1725958883418,0.74054282,2356.2,2355.8,0.005]
[1725958884127,3.74054282,2356.2,2355.8,0.005]
[1725958886925,3.74013252,2356.2,2355.8,0.005]
[1725958888320,3.74013252,2356.2,2356.1,0.086301]
[1725958888953,4.91670069,2356.2,2356.1,0.086301]
[1725958889173,0.5688837,2356.1,2355.8,0.005]
[1725958889325,3.23814274,2355.9,2355.8,0.005]
[1725958889526,7.40016841,2355.9,2355.8,0.005]
[1725958889828,6.23814274,2355.9,2355.8,0.005]
[1725958890353,6.95197398,2355.9,2355.8,0.005]
[1725958890521,8.02871981,2355.9,2355.8,0.005]
[1725958890923,7.42103534,2355.9,2355.8,0.005]
[1725958891525,6.34428951,2355.9,2355.8,0.005]
[1725958891720,3.34428951,2355.9,2355.8,0.005]
[1725958891924,0.10613386,2356.0,2355.8,0.005]
[1725958893930,3.10613386,2356.0,2355.8,0.005]
[1725958899578,3.23814274,2355.9,2355.8,0.005]
[1725958899795,6.23814274,2355.9,2355.8,0.005]
[1725958899948,6.34428224,2355.9,2355.8,0.005]
[1725958902722,3.1061395,2355.9,2355.8,0.005]
[1725958902884,3.10613403,2356.0,2355.8,0.005]
[1725958903085,0.10613403,2356.0,2355.8,0.005]
[1725958903488,3.10612184,2356.1,2355.8,0.005]
[1725958904445,3.0,2356.1,2355.8,0.005]
[1725958904601,3.0,2356.0,2355.8,0.005]
[1725958904797,3.0,2356.1,2355.8,0.005]
[1725958910446,3.0,2356.1,2355.8,0.555]
[1725958910735,3.0,2356.1,2355.9,0.08488245]
[1725958910938,3.0,2356.1,2355.8,0.555]
[1725958911714,3.0,2356.1,2355.8,0.005]
[1725958914309,3.3,2356.1,2355.8,0.005]
[1725958915253,3.23814274,2355.9,2355.8,0.005]
[1725958915739,6.77786811,2355.9,2355.8,0.005]
[1725958916337,7.96511286,2355.9,2355.8,0.005]
[1725958918262,7.96511286,2355.9,2355.6,0.005]
[1725958918263,24.33841029,2355.9,2355.6,0.005]
[1725958918426,3.79651129,2355.8,2355.0,0.5]
[1725958918627,3.23814274,2355.6,2355.0,0.5]
[1725958918837,3.79651129,2355.8,2355.0,0.5]
[1725958918838,3.23814274,2355.4,2355.0,0.5]
[1725958919156,3.10616687,2355.3,2355.0,0.5]
[1725958919446,0.10616673,2355.2,2355.0,0.5]
[1725958919765,3.23814274,2355.1,2355.0,0.5]
[1725958920048,6.23814274,2355.1,2355.0,0.5]
[1725958920251,3.10616742,2355.1,2355.0,0.5]
[1725958920932,3.0,2355.1,2355.0,0.5]
[1725958921115,3.0,2355.2,2355.0,0.5]
[1725958921312,3.23814274,2356.0,2355.0,0.5]
[1725958921313,0.10614433,2355.9,2355.0,0.5]
[1725958921508,0.4599586,2355.9,2355.1,0.08491229]
[1725958921816,0.4599586,2355.9,2355.0,0.5]
[1725958922229,0.4599586,2355.9,2355.1,0.0849123]
[1725958922508,0.4599586,2355.9,2355.0,0.5]
[1725958922710,0.4599586,2355.9,2355.1,0.55]
[1725958923617,0.4599586,2355.9,2355.0,0.5]
[1725958923618,3.4599586,2355.9,2355.0,0.5]
[1725958926253,3.4599586,2355.9,2355.1,0.08491243]
[1725958926473,3.10614433,2355.9,2355.1,0.38230552]
[1725958926771,3.10614433,2355.9,2355.0,0.5]
[1725958926918,3.10614433,2355.9,2355.1,0.55]
[1725958927855,3.10614433,2355.9,2355.2,0.08490561]
[1725958928056,3.10614433,2355.9,2355.1,0.55]
[1725958928927,3.10614433,2355.9,2355.1,0.97881427]
[1725958929127,3.10614433,2355.9,2355.1,0.55]
[1725958929328,3.10614433,2355.9,2355.2,0.08490458]
[1725958929958,3.10614433,2355.9,2355.1,0.55]
[1725958930445,3.10614433,2355.9,2355.2,0.0849046]
[1725958930649,4.28944196,2355.9,2355.1,0.55]
[1725958931463,4.28944196,2355.9,2355.1,20.08]
[1725958931966,4.28944196,2355.9,2355.1,19.53]
[1725958932353,3.23814274,2355.4,2355.0,0.5]
[1725958932557,0.10616327,2355.3,2355.0,0.5]
[1725958932878,3.10616327,2355.3,2355.0,0.5]
[1725958933074,3.34430465,2355.2,2355.0,0.5]
[1725958933387,0.33443047,2355.1,2355.0,0.5]
[1725958934444,6.23814274,2355.2,2355.0,0.5]
[1725958934970,3.0,2355.1,2355.0,0.5]
[1725958941453,6.23814274,2355.1,2355.0,0.5]
[1725958943348,6.23814274,2355.1,2355.0,0.15625]
[1725958943564,7.3807457,2355.1,2355.0,0.15625]
[1725958943746,7.85841169,2355.1,2355.0,0.15625]
[1725958944079,0.47766599,2355.0,2354.6,7.48]
[1725958944234,3.23814274,2354.7,2354.6,7.48]
[1725958944430,3.23814274,2354.7,2354.0,0.01]
[1725958944431,6.572576,2354.7,2354.0,7.49]
[1725958944650,3.23814274,2354.4,2354.0,0.01]
[1725958944847,3.10620483,2354.3,2354.0,0.01]
[1725958945047,0.10620481,2354.2,2354.0,0.01]
[1725958946186,3.10620479,2354.2,2354.0,0.01]
[1725958946341,3.0,2354.1,2354.0,0.01]
[1725958949074,3.61062048,2354.1,2354.0,0.01]
[1725958949382,3.71684278,2354.1,2354.0,0.01]
[1725958952855,16.3058441,2354.1,2353.9,0.0374994]
[1725958953070,6.58381516,2354.0,2353.2,7.48]
[1725958953272,3.23814274,2353.3,2352.5,12.31]
[1725958953440,3.10624802,2353.9,2351.9,3.23814274]
[1725958953441,6.23814274,2353.1,2351.9,3.23814274]
[1725958953651,6.23814274,2353.1,2351.9,22.76814274]
[1725958953652,0.10625796,2353.0,2351.9,22.76814274]
[1725958953853,0.10625796,2353.0,2352.0,2.27681427]
[1725958954056,3.10625796,2353.0,2352.0,2.27681427]
[1725958954558,3.0,2353.0,2352.0,2.27681427]
[1725958954756,0.08359155,2352.9,2352.0,2.27681427]
[1725958954955,0.08359155,2352.9,2352.1,2.58951004]
[1725958955253,0.08359155,2352.9,2351.9,22.76814274]
[1725958955254,0.08359155,2352.9,2351.9,3.23814274]
[1725958955454,0.08359155,2352.9,2352.1,3.23814274]
[1725958955674,0.08359155,2352.9,2352.2,0.08500954]
[1725958955844,3.0,2353.1,2352.3,3.32314972]
[1725958956701,3.0,2353.1,2352.4,0.55]
[1725958956883,3.0,2353.1,2352.5,3.32313758]
[1725958957065,3.0,2353.1,2352.6,0.55]
[1725958957264,3.0,2353.1,2352.7,0.47230862]
[1725958957482,3.0,2353.1,2352.8,0.08499488]
[1725958957994,3.0,2353.1,2352.7,0.38731376]
[1725958960657,3.0,2353.1,2352.8,0.08499167]
[1725958961697,3.08359155,2353.5,2352.8,0.08499167]
[1725958961914,3.08359155,2353.7,2352.8,2.05523054]
[1725958962091,3.08359155,2353.7,2352.9,20.08]
[1725958962258,0.08359155,2353.7,2352.9,20.08]
[1725958962575,0.08359155,2353.7,2353.0,2.21352305]
[1725958963182,3.0,2353.9,2353.1,23.40312163]
[1725958963385,3.0,2353.9,2353.1,23.31814274]
[1725958963965,3.0,2353.9,2353.3,3.23814274]
[1725958964169,3.0,2353.9,2353.4,20.08]
[1725958964483,3.0,2353.9,2353.5,5.65491818]
[1725958964683,3.0,2353.9,2353.6,0.55]
[1725958964914,3.0,2353.9,2353.7,0.08496233]
[1725958965726,0.08359155,2354.5,2353.7,3.32310507]
[1725958965871,0.08359155,2354.7,2353.8,0.47226669]
[1725958966070,0.08359155,2354.7,2353.8,0.08495618]
[1725958967066,3.08359155,2354.7,2353.8,0.08495618]
[1725958967277,4.17031617,2354.6,2353.8,2.01649562]
[1725958967519,3.08359155,2354.5,2353.7,19.53]
[1725958970509,3.08359155,2354.5,2353.6,20.08]
[1725958970715,0.72539077,2354.4,2353.6,22.836]
[1725958970874,0.08359155,2354.3,2353.6,22.836]
[1725958973017,0.08359155,2354.3,2353.6,19.53]
[1725958973220,3.08359155,2354.3,2353.6,19.53]
[1725958973381,0.08359155,2354.2,2353.6,19.53]
[1725958974417,0.08359155,2354.2,2353.7,0.0849689]
[1725958974790,0.08359155,2354.3,2353.6,19.53]
[1725958975102,0.45613063,2354.3,2353.6,19.53]
[1725958975374,0.08359155,2354.2,2353.6,19.53]
[1725958976091,0.08359155,2354.2,2353.7,0.08496323]
[1725958976417,0.08359155,2354.2,2353.5,7.48]
[1725958976983,0.52555796,2354.2,2353.5,7.48]
[1725958977325,3.7637007,2354.2,2353.4,19.53]
[1725958977525,3.0,2354.1,2353.4,19.53]
[1725958977820,0.08359155,2354.0,2353.4,19.53]
[1725958978025,0.75996162,2354.0,2353.2,7.48]
[1725958978929,3.99810436,2354.0,2353.2,7.48]
[1725958979144,3.0,2353.9,2353.2,7.48]
[1725958979347,0.08359155,2353.8,2353.2,7.48]
[1725958979553,0.78340199,2353.8,2353.2,7.48]
[1725958979707,0.08359155,2353.7,2353.0,19.53]
[1725958980849,3.08359155,2353.7,2353.0,19.53]
[1725958981635,3.08359155,2353.8,2353.0,19.53]
[1725958981836,3.0,2353.8,2353.1,6.26295701]
[1725958982037,3.0,2353.8,2353.2,0.55]
[1725958982221,0.08359155,2353.7,2353.1,3.02481427]
[1725958982541,0.08359155,2353.7,2353.0,19.53]
[1725958982542,0.68359155,2353.7,2353.0,19.53]
[1725958983116,0.68359155,2353.7,2352.9,7.48]
[1725958983117,3.23814274,2353.6,2352.9,7.48]
[1725958983316,3.23814274,2353.4,2352.6,7.48]
[1725958983525,3.08359155,2353.3,2352.6,7.48]
[1725958983898,0.08359155,2353.2,2352.6,7.48]
[1725958984149,0.08359155,2353.2,2352.1,3.23814274]
[1725958984348,0.71576498,2353.2,2352.1,3.23814274]
[1725958984522,3.95390772,2353.2,2351.9,3.96352539]
[1725958984701,3.32173429,2353.2,2352.1,3.23814274]
[1725958984905,3.41576498,2353.1,2352.2,0.32381427]
[1725958985105,3.41576498,2353.1,2351.9,3.69150689]
[1725958985376,3.41576498,2353.1,2351.9,3.23814274]
[1725958985523,6.41576498,2353.1,2351.9,3.23814274]
[1725958985705,4.20353351,2353.0,2352.0,0.36915069]
[1725958986053,3.23814274,2352.8,2351.7,0.45336415]
[1725958986264,3.23814274,2352.8,2351.6,0.1174994]
[1725958986265,0.08359155,2352.7,2351.6,0.1174994]
[1725958986469,3.23814274,2351.9,2351.6,0.1174994]
[1725958986630,0.08359155,2352.2,2351.6,0.1174994]
[1725958986810,3.08359155,2352.2,2351.6,0.1174994]
[1725958987225,0.08359155,2352.1,2351.6,0.1174994]
[1725958987434,3.23814274,2351.8,2351.6,0.1174994]
[1725958987617,0.08359155,2351.7,2351.6,0.1174994]
[1725958987824,0.08359155,2352.1,2351.6,0.1174994]
[1725958988159,1.11104174,2352.1,2351.6,0.1174994]
[1725958989724,1.72135009,2352.1,2351.6,0.1174994]
[1725958990238,1.11104174,2352.1,2351.6,0.1174994]
[1725958991942,3.23814274,2352.0,2351.6,0.1174994]
[1725958992153,3.51851,2351.9,2351.6,0.1174994]
[1725958994131,3.23814274,2351.8,2351.6,0.1174994]
[1725958994333,3.08359155,2351.7,2351.6,0.1174994]
[1725958995153,3.08359155,2351.7,2350.2,7.48]
[1725958995355,3.08359155,2351.7,2349.2,0.66635614]
[1725958995356,3.0,2351.1,2349.7,3.69453141]
[1725958995555,3.08359155,2351.0,2349.9,3.23814274]
[1725958995873,3.38359155,2351.0,2350.1,3.23814274]
[1725958996220,3.38359155,2351.0,2350.0,0.08509287]
[1725958996462,3.38359155,2351.0,2350.0,3.23814274]
[1725958996631,0.63835916,2350.9,2350.1,0.40890437]
[1725958996833,0.08359155,2350.8,2350.1,0.32381427]
[1725958997054,0.08359155,2350.8,2350.1,0.4089054]